[Event "*** Titled Tuesday Blitz"]
[Site "Chess.com"]
[Date "2021.04.27"]
[Round "2"]
[White "Kostukov_Alex"]
[Black "Kildepiotr"]
[Result "0-1"]
[WhiteElo "2306"]
[BlackElo "2648"]
[TimeControl "180+1"]
[EndTime "10:16:32 PDT"]
[Termination "Kildepiotr won by resignation"]

1. g3 {[%clk 0:02:59.6]} 1... Nf6 {[%clk 0:02:58.9]} 2. Bg2 {[%clk 0:02:59.7]}
2... d5 {[%clk 0:02:59.3]} 3. d3 {[%clk 0:02:59.2]} 3... g6 {[%clk 0:02:59.2]}
4. e4 {[%clk 0:02:58.1]} 4... dxe4 {[%clk 0:02:58.5]} 5. dxe4 {[%clk 0:02:59]}
5... Nbd7 {[%clk 0:02:58.1]} 6. f3 {[%clk 0:02:56.5]} 6... Bg7 {[%clk
0:02:58.2]} 7. Be3 {[%clk 0:02:56.5]} 7... O-O {[%clk 0:02:58.1]} 8. c3 {[%clk
0:02:56.7]} 8... e5 {[%clk 0:02:58.3]} 9. Nd2 {[%clk 0:02:56.3]} 9... Qe7 {[%clk
0:02:58.4]} 10. Nh3 {[%clk 0:02:54.2]} 10... b6 {[%clk 0:02:57.1]} 11. O-O
{[%clk 0:02:52]} 11... a5 {[%clk 0:02:57]} 12. Nf2 {[%clk 0:02:43]} 12... Ba6
{[%clk 0:02:56.3]} 13. Re1 {[%clk 0:02:43]} 13... Rad8 {[%clk 0:02:56.7]} 14.
Qc2 {[%clk 0:02:34.8]} 14... Nc5 {[%clk 0:02:56.2]} 15. Rad1 {[%clk 0:02:27]}
15... Nd3 {[%clk 0:02:43.6]} 16. Nxd3 {[%clk 0:02:16.9]} 16... Bxd3 {[%clk
0:02:44.5]} 17. Qc1 {[%clk 0:02:15.9]} 17... Nd7 {[%clk 0:02:42.1]} 18. Nb3
{[%clk 0:02:10.6]} 18... Bc4 {[%clk 0:02:39]} 19. Bf1 {[%clk 0:02:05.3]} 19...
Qe6 {[%clk 0:02:38.3]} 20. Qc2 {[%clk 0:01:27.9]} 20... a4 {[%clk 0:02:31.4]}
21. Bxc4 {[%clk 0:01:23.7]} 21... Qxc4 {[%clk 0:02:28.8]} 22. Nd2 {[%clk
0:01:18.7]} 22... Qc6 {[%clk 0:02:23.2]} 23. b4 {[%clk 0:01:14.2]} 23... f5
{[%clk 0:02:19]} 24. c4 {[%clk 0:01:04.3]} 24... f4 {[%clk 0:02:18.9]} 25. Bf2
{[%clk 0:01:02.7]} 25... fxg3 {[%clk 0:02:18.5]} 26. hxg3 {[%clk 0:01:03.1]}
26... Bh6 {[%clk 0:02:14.8]} 27. b5 {[%clk 0:01:02]} 27... Qf6 {[%clk
0:02:14.3]} 28. Kg2 {[%clk 0:00:51.3]} 28... Bxd2 {[%clk 0:02:12.2]} 29. Rxd2
{[%clk 0:00:50.5]} 29... Qxf3+ {[%clk 0:02:12.3]} 30. Kg1 {[%clk 0:00:47.7]}
30... Nf6 {[%clk 0:02:11.7]} 31. Re3 {[%clk 0:00:41]} 31... Qh5 {[%clk
0:01:58.8]} 32. Rxd8 {[%clk 0:00:36]} 32... Rxd8 {[%clk 0:01:56.5]} 33. Rd3
{[%clk 0:00:30.4]} 33... Rf8 {[%clk 0:01:55]} 34. Rf3 {[%clk 0:00:10.9]} 34...
Qxf3 {[%clk 0:01:53.9]} 0-1

[Event "*** Titled Tuesday Blitz"]
[Site "Chess.com"]
[Date "2021.04.27"]
[Round "2"]
[White "kallerotmg"]
[Black "Sjakkerntobi"]
[Result "0-1"]
[WhiteElo "2083"]
[BlackElo "2377"]
[TimeControl "180+1"]
[EndTime "10:16:32 PDT"]
[Termination "Sjakkerntobi won by resignation"]

1. d4 {[%clk 0:02:40.7]} 1... e6 {[%clk 0:02:56.4]} 2. Nf3 {[%clk 0:02:35.3]}
2... Nf6 {[%clk 0:02:55.4]} 3. c4 {[%clk 0:02:34.8]} 3... c5 {[%clk 0:02:55.4]}
4. d5 {[%clk 0:02:34.7]} 4... exd5 {[%clk 0:02:56.3]} 5. cxd5 {[%clk 0:02:12.3]}
5... d6 {[%clk 0:02:53.2]} 6. Nc3 {[%clk 0:02:12.5]} 6... g6 {[%clk 0:02:52.2]}
7. Nd2 {[%clk 0:02:11.8]} 7... Bg7 {[%clk 0:02:52.1]} 8. e4 {[%clk 0:02:12]}
8... O-O {[%clk 0:02:52.1]} 9. Be2 {[%clk 0:02:11.7]} 9... Re8 {[%clk
0:02:49.9]} 10. O-O {[%clk 0:01:59.7]} 10... Nbd7 {[%clk 0:02:46.3]} 11. f3
{[%clk 0:01:59.8]} 11... Ne5 {[%clk 0:02:44.3]} 12. Qc2 {[%clk 0:01:59.3]} 12...
g5 {[%clk 0:02:44]} 13. Rb1 {[%clk 0:01:10.3]} 13... h6 {[%clk 0:02:24.8]} 14.
b4 {[%clk 0:00:57.4]} 14... cxb4 {[%clk 0:02:16.2]} 15. Rxb4 {[%clk 0:00:47.1]}
15... Qc7 {[%clk 0:02:06]} 16. Bb2 {[%clk 0:00:46]} 16... Qc5+ {[%clk
0:02:04.6]} 17. Kh1 {[%clk 0:00:43.3]} 17... Qxb4 {[%clk 0:02:03.9]} 18. Ba1
{[%clk 0:00:29.8]} 18... Qc5 {[%clk 0:02:01]} 19. Nb3 {[%clk 0:00:28.2]} 19...
Qc7 {[%clk 0:02:00.6]} 20. Rc1 {[%clk 0:00:18.7]} 20... Bd7 {[%clk 0:02:00.3]}
21. Qd2 {[%clk 0:00:18.4]} 21... Rac8 {[%clk 0:01:52.9]} 22. Nb5 {[%clk
0:00:18.2]} 22... Qb8 {[%clk 0:01:53]} 23. N5d4 {[%clk 0:00:17.7]} 23... Rxc1+
{[%clk 0:01:52.3]} 24. Nxc1 {[%clk 0:00:17.8]} 24... Rc8 {[%clk 0:01:45.2]} 25.
g3 {[%clk 0:00:18.1]} 25... Qc7 {[%clk 0:01:44.3]} 26. Ncb3 {[%clk 0:00:18.2]}
26... Ng6 {[%clk 0:01:42.3]} 27. Kg2 {[%clk 0:00:05.7]} 0-1

[Event "*** Titled Tuesday Blitz"]
[Site "Chess.com"]
[Date "2021.04.27"]
[Round "2"]
[White "chessmadara"]
[Black "jens1102"]
[Result "0-1"]
[WhiteElo "2145"]
[BlackElo "2407"]
[TimeControl "180+1"]
[EndTime "10:16:33 PDT"]
[Termination "jens1102 won on time"]

1. c4 {[%clk 0:03:00.9]} 1... e6 {[%clk 0:02:59.7]} 2. Nc3 {[%clk 0:02:54.9]}
2... d5 {[%clk 0:03:00.6]} 3. cxd5 {[%clk 0:02:54.4]} 3... exd5 {[%clk
0:03:01.5]} 4. d4 {[%clk 0:02:54.7]} 4... Nf6 {[%clk 0:03:01.5]} 5. Bg5 {[%clk
0:02:51.3]} 5... c6 {[%clk 0:03:00.4]} 6. e3 {[%clk 0:02:46.1]} 6... Bd6 {[%clk
0:02:59.8]} 7. Nf3 {[%clk 0:02:43.3]} 7... Nbd7 {[%clk 0:02:59.4]} 8. Bd3 {[%clk
0:02:42.2]} 8... Nf8 {[%clk 0:02:59]} 9. Qc2 {[%clk 0:02:37.6]} 9... Ne6 {[%clk
0:02:58.8]} 10. Bh4 {[%clk 0:02:35.3]} 10... g6 {[%clk 0:02:57.8]} 11. O-O
{[%clk 0:02:08.9]} 11... O-O {[%clk 0:02:57.2]} 12. Ne5 {[%clk 0:02:03.8]} 12...
Ng7 {[%clk 0:02:54.3]} 13. a3 {[%clk 0:01:50.7]} 13... Bf5 {[%clk 0:02:51.7]}
14. b4 {[%clk 0:01:45.2]} 14... Bxd3 {[%clk 0:02:47.5]} 15. Qxd3 {[%clk
0:01:46.1]} 15... Nf5 {[%clk 0:02:48]} 16. Bxf6 {[%clk 0:01:43.7]} 16... Qxf6
{[%clk 0:02:48.5]} 17. Nd7 {[%clk 0:01:42.8]} 17... Qh4 {[%clk 0:02:43.9]} 18.
g3 {[%clk 0:01:41.8]} 18... Qh3 {[%clk 0:02:39.9]} 19. Qe2 {[%clk 0:01:05.1]}
19... Nxd4 {[%clk 0:02:32.6]} 20. Nf6+ {[%clk 0:00:59.6]} 20... Kg7 {[%clk
0:02:32]} 21. exd4 {[%clk 0:00:59]} 21... Kxf6 {[%clk 0:02:32.4]} 22. b5 {[%clk
0:00:46.2]} 22... Rfe8 {[%clk 0:02:29.2]} 23. Qf3+ {[%clk 0:00:44.3]} 23... Qf5
{[%clk 0:02:28.1]} 24. Qxf5+ {[%clk 0:00:37.6]} 24... Kxf5 {[%clk 0:02:27.8]}
25. bxc6 {[%clk 0:00:37.6]} 25... bxc6 {[%clk 0:02:27.6]} 26. Rfc1 {[%clk
0:00:30.3]} 26... Rac8 {[%clk 0:02:23.1]} 27. Na4 {[%clk 0:00:27.9]} 27... Re2
{[%clk 0:02:21.4]} 28. Kf1 {[%clk 0:00:26.7]} 28... Rd2 {[%clk 0:02:21.6]} 29.
Nc3 {[%clk 0:00:11.1]} 29... Re8 {[%clk 0:02:03.2]} 30. Rd1 {[%clk 0:00:05.1]}
30... Rxd1+ {[%clk 0:02:02.4]} 31. Rxd1 {[%clk 0:00:04.9]} 31... Bxa3 {[%clk
0:02:02.2]} 32. Ne2 {[%clk 0:00:01.8]} 32... Bb4 {[%clk 0:01:57.9]} 0-1

[Event "*** Titled Tuesday Blitz"]
[Site "Chess.com"]
[Date "2021.04.27"]
[Round "2"]
[White "lacafi"]
[Black "thebulldog1"]
[Result "0-1"]
[WhiteElo "2180"]
[BlackElo "2416"]
[TimeControl "180+1"]
[EndTime "10:16:34 PDT"]
[Termination "thebulldog1 won by resignation"]

1. d4 {[%clk 0:03:00.9]} 1... Nf6 {[%clk 0:02:58.7]} 2. Nf3 {[%clk 0:03:01.1]}
2... g6 {[%clk 0:02:59.2]} 3. c4 {[%clk 0:03:01.2]} 3... Bg7 {[%clk 0:02:59.8]}
4. Nc3 {[%clk 0:03:01.8]} 4... O-O {[%clk 0:03:00.3]} 5. e4 {[%clk 0:03:02.1]}
5... d6 {[%clk 0:03:00.9]} 6. Be2 {[%clk 0:03:02.8]} 6... Bg4 {[%clk 0:02:55.8]}
7. O-O {[%clk 0:03:02.8]} 7... Nfd7 {[%clk 0:02:55.1]} 8. h3 {[%clk 0:02:59.3]}
8... Bxf3 {[%clk 0:02:55.3]} 9. Bxf3 {[%clk 0:03:00.2]} 9... c5 {[%clk
0:02:55.4]} 10. Be3 {[%clk 0:03:00.8]} 10... Nc6 {[%clk 0:02:55.5]} 11. d5
{[%clk 0:02:56.5]} 11... Nd4 {[%clk 0:02:55.4]} 12. Bxd4 {[%clk 0:02:45.3]}
12... cxd4 {[%clk 0:02:56.3]} 13. Ne2 {[%clk 0:02:42.4]} 13... Rc8 {[%clk
0:02:44.9]} 14. Nxd4 {[%clk 0:02:25.5]} 14... Rxc4 {[%clk 0:02:44.2]} 15. Nb3
{[%clk 0:02:25.2]} 15... Bxb2 {[%clk 0:02:42.3]} 16. Qe2 {[%clk 0:02:25.1]}
16... Bxa1 {[%clk 0:02:39.5]} 17. Qxc4 {[%clk 0:02:23.6]} 17... Bg7 {[%clk
0:02:37.5]} 18. Rc1 {[%clk 0:02:13.1]} 18... Ne5 {[%clk 0:02:26.1]} 19. Qc7
{[%clk 0:02:13.4]} 19... Nd3 {[%clk 0:01:50.5]} 20. Qxd8 {[%clk 0:02:07.1]}
20... Rxd8 {[%clk 0:01:51.4]} 21. Rc7 {[%clk 0:02:07.2]} 21... a5 {[%clk
0:01:37.1]} 22. Nxa5 {[%clk 0:01:29.4]} 22... Bd4 {[%clk 0:01:35.7]} 23. Nxb7
{[%clk 0:01:19.6]} 23... Re8 {[%clk 0:01:31.4]} 24. Na5 {[%clk 0:01:08.2]} 24...
Bb6 {[%clk 0:01:01]} 25. Rc3 {[%clk 0:00:49.9]} 25... Nxf2 {[%clk 0:01:01.1]}
26. Nc4 {[%clk 0:00:50]} 26... Nd1+ {[%clk 0:00:58.4]} 0-1

[Event "*** Titled Tuesday Blitz"]
[Site "Chess.com"]
[Date "2021.04.27"]
[Round "2"]
[White "mishanick"]
[Black "Nozdrachev_Leonid"]
[Result "1-0"]
[WhiteElo "3014"]
[BlackElo "2609"]
[TimeControl "180+1"]
[EndTime "10:16:36 PDT"]
[Termination "mishanick won on time"]

1. e4 {[%clk 0:03:00.9]} 1... c6 {[%clk 0:02:59.3]} 2. Nf3 {[%clk 0:03:00.7]}
2... d5 {[%clk 0:02:57.9]} 3. Nc3 {[%clk 0:03:01.3]} 3... dxe4 {[%clk
0:02:54.9]} 4. Nxe4 {[%clk 0:03:02.2]} 4... Nf6 {[%clk 0:02:54.5]} 5. Qe2 {[%clk
0:03:02.7]} 5... Nxe4 {[%clk 0:02:50.8]} 6. Qxe4 {[%clk 0:03:03.6]} 6... Qd5
{[%clk 0:02:50.9]} 7. Qh4 {[%clk 0:03:03.3]} 7... Bf5 {[%clk 0:02:39.4]} 8. Bc4
{[%clk 0:03:02.1]} 8... Qd6 {[%clk 0:02:30.2]} 9. d3 {[%clk 0:02:53.7]} 9... e6
{[%clk 0:02:29.7]} 10. Bf4 {[%clk 0:02:48.2]} 10... Qb4+ {[%clk 0:02:19.2]} 11.
c3 {[%clk 0:02:48.4]} 11... Qxb2 {[%clk 0:02:18]} 12. O-O {[%clk 0:02:49]} 12...
Qxc3 {[%clk 0:02:14.4]} 13. Rab1 {[%clk 0:02:40.5]} 13... Be7 {[%clk 0:02:10.7]}
14. Qg3 {[%clk 0:02:37.7]} 14... Nd7 {[%clk 0:01:36.9]} 15. Rxb7 {[%clk
0:02:37.6]} 15... Rd8 {[%clk 0:01:32]} 16. Ne5 {[%clk 0:02:36.5]} 16... g5
{[%clk 0:00:51.4]} 17. Bxg5 {[%clk 0:01:46.8]} 17... Qxe5 {[%clk 0:00:25.1]} 18.
Qxe5 {[%clk 0:01:42.8]} 18... Nxe5 {[%clk 0:00:24.5]} 19. Rxe7+ {[%clk
0:01:40.1]} 19... Kf8 {[%clk 0:00:23.8]} 20. Rxa7 {[%clk 0:01:40.1]} 20... Nxc4
{[%clk 0:00:15.4]} 21. Bxd8 {[%clk 0:01:37.9]} 21... Nd6 {[%clk 0:00:04.1]} 22.
Bf6 {[%clk 0:01:37.3]} 22... Rg8 {[%clk 0:00:03.1]} 23. Ra8+ {[%clk 0:01:37.6]}
23... Ne8 {[%clk 0:00:02.7]} 24. Rb1 {[%clk 0:01:38.2]} 24... Bxd3 {[%clk
0:00:01.3]} 25. Rbb8 {[%clk 0:01:37.4]} 1-0

[Event "*** Titled Tuesday Blitz"]
[Site "Chess.com"]
[Date "2021.04.27"]
[Round "2"]
[White "Ind1anStar"]
[Black "frederiksvane"]
[Result "0-1"]
[WhiteElo "2519"]
[BlackElo "2737"]
[TimeControl "180+1"]
[EndTime "10:16:36 PDT"]
[Termination "frederiksvane won by resignation"]

1. c4 {[%clk 0:03:00.9]} 1... c5 {[%clk 0:03:00.2]} 2. Nf3 {[%clk 0:03:00.8]}
2... Nc6 {[%clk 0:03:00.4]} 3. Nc3 {[%clk 0:03:01.1]} 3... g6 {[%clk 0:03:00.7]}
4. g3 {[%clk 0:02:58.7]} 4... Bg7 {[%clk 0:03:00.7]} 5. Bg2 {[%clk 0:02:59.3]}
5... d6 {[%clk 0:03:01.3]} 6. O-O {[%clk 0:02:59.9]} 6... Bf5 {[%clk 0:03:01.6]}
7. d3 {[%clk 0:03:00.3]} 7... Qd7 {[%clk 0:03:01.1]} 8. Nd5 {[%clk 0:02:55]}
8... Nf6 {[%clk 0:02:57.3]} 9. e4 {[%clk 0:02:42]} 9... Bg4 {[%clk 0:02:48.9]}
10. h3 {[%clk 0:02:39.8]} 10... Bxh3 {[%clk 0:02:21.1]} 11. Bxh3 {[%clk
0:02:39.7]} 11... Qxh3 {[%clk 0:02:22]} 12. Nc7+ {[%clk 0:02:38.6]} 12... Kf8
{[%clk 0:02:09.6]} 13. Nxa8 {[%clk 0:02:37.3]} 13... Ng4 {[%clk 0:02:07]} 14.
Re1 {[%clk 0:01:59.2]} 14... h5 {[%clk 0:01:35.3]} 15. Be3 {[%clk 0:01:42.3]}
15... h4 {[%clk 0:01:20.1]} 16. Nxh4 {[%clk 0:00:47.7]} 16... Nce5 {[%clk
0:01:00]} 17. Bg5 {[%clk 0:00:20.3]} 0-1

[Event "*** Titled Tuesday Blitz"]
[Site "Chess.com"]
[Date "2021.04.27"]
[Round "2"]
[White "SargissyanSargis"]
[Black "AthanasiusLefebvre"]
[Result "1/2-1/2"]
[WhiteElo "2367"]
[BlackElo "2076"]
[TimeControl "180+1"]
[EndTime "10:16:37 PDT"]
[Termination "Game drawn by repetition"]

1. e4 {[%clk 0:03:00.9]} 1... c5 {[%clk 0:02:56.4]} 2. Nc3 {[%clk 0:03:00.2]}
2... e6 {[%clk 0:02:55.6]} 3. Nf3 {[%clk 0:02:59.2]} 3... Nc6 {[%clk 0:02:55.6]}
4. d4 {[%clk 0:02:58.8]} 4... cxd4 {[%clk 0:02:55.7]} 5. Nxd4 {[%clk 0:02:59.7]}
5... a6 {[%clk 0:02:55.4]} 6. Be3 {[%clk 0:02:39.5]} 6... Qc7 {[%clk 0:02:53.8]}
7. Be2 {[%clk 0:02:33.4]} 7... Nf6 {[%clk 0:02:49.1]} 8. O-O {[%clk 0:02:30.9]}
8... b5 {[%clk 0:02:48.1]} 9. a3 {[%clk 0:02:23.4]} 9... Bb7 {[%clk 0:02:44.8]}
10. Nxc6 {[%clk 0:02:15.4]} 10... Bxc6 {[%clk 0:02:43]} 11. Bf3 {[%clk
0:02:14.1]} 11... Bd6 {[%clk 0:02:33]} 12. h3 {[%clk 0:02:07]} 12... Be5 {[%clk
0:02:21.1]} 13. Bd4 {[%clk 0:01:58.4]} 13... O-O {[%clk 0:02:16]} 14. Re1 {[%clk
0:01:52]} 14... Rac8 {[%clk 0:02:04.6]} 15. Qd2 {[%clk 0:01:32.8]} 15... Rfd8
{[%clk 0:01:57]} 16. Rad1 {[%clk 0:01:17.1]} 16... Bb7 {[%clk 0:01:24.7]} 17.
Qe3 {[%clk 0:01:11.5]} 17... Bf4 {[%clk 0:01:22]} 18. Qe2 {[%clk 0:01:07.8]}
18... Bh2+ {[%clk 0:01:19.6]} 19. Kh1 {[%clk 0:01:03.7]} 19... Be5 {[%clk
0:01:18.3]} 20. Qe3 {[%clk 0:00:51.9]} 20... Bf4 {[%clk 0:01:16.3]} 21. Qe2
{[%clk 0:00:49.5]} 21... Be5 {[%clk 0:01:15.5]} 22. Qe3 {[%clk 0:00:49]} 22...
Bf4 {[%clk 0:01:15]} 23. Qd3 {[%clk 0:00:38.1]} 23... Be5 {[%clk 0:01:06.2]} 24.
Qe3 {[%clk 0:00:33.6]} 1/2-1/2

[Event "*** Titled Tuesday Blitz"]
[Site "Chess.com"]
[Date "2021.04.27"]
[Round "2"]
[White "gmcorrales"]
[Black "AsaHoffmann"]
[Result "1-0"]
[WhiteElo "2860"]
[BlackElo "2339"]
[TimeControl "180+1"]
[EndTime "10:16:42 PDT"]
[Termination "gmcorrales won by resignation"]

1. e4 {[%clk 0:02:17.5]} 1... d6 {[%clk 0:02:59.3]} 2. d4 {[%clk 0:02:16.6]}
2... Nf6 {[%clk 0:02:58.6]} 3. Nc3 {[%clk 0:02:17]} 3... c6 {[%clk 0:02:58.5]}
4. f4 {[%clk 0:02:16.7]} 4... Qa5 {[%clk 0:02:58]} 5. Bd2 {[%clk 0:02:15.8]}
5... e5 {[%clk 0:02:56.4]} 6. Nd5 {[%clk 0:02:03.3]} 6... Qd8 {[%clk 0:02:55.7]}
7. Nxf6+ {[%clk 0:02:03]} 7... Qxf6 {[%clk 0:02:55.6]} 8. dxe5 {[%clk
0:02:03.2]} 8... dxe5 {[%clk 0:02:55.3]} 9. Nf3 {[%clk 0:02:04.1]} 9... Nd7
{[%clk 0:02:49.5]} 10. Bc4 {[%clk 0:01:57.6]} 10... Bc5 {[%clk 0:02:44.3]} 11.
Qe2 {[%clk 0:01:55.9]} 11... O-O {[%clk 0:02:33.6]} 12. O-O-O {[%clk 0:01:55]}
12... exf4 {[%clk 0:02:32.5]} 13. e5 {[%clk 0:01:54.3]} 13... Qh6 {[%clk
0:02:29.8]} 14. g3 {[%clk 0:01:53]} 14... Be3 {[%clk 0:02:25.4]} 15. gxf4 {[%clk
0:01:52.6]} 15... Bxd2+ {[%clk 0:02:24.2]} 16. Qxd2 {[%clk 0:01:53.5]} 16... Nb6
{[%clk 0:02:22.4]} 17. Be2 {[%clk 0:01:33.8]} 17... Bg4 {[%clk 0:02:19.4]} 18.
Ng5 {[%clk 0:01:33.7]} 18... Rad8 {[%clk 0:02:12.5]} 19. Qxd8 {[%clk 0:01:31.4]}
19... Bxe2 {[%clk 0:02:11.7]} 20. Rd2 {[%clk 0:01:27.4]} 20... Nc4 {[%clk
0:01:59.2]} 21. Rd4 {[%clk 0:00:18.6]} 21... g6 {[%clk 0:01:38.5]} 22. Qf6
{[%clk 0:00:16.6]} 22... Qh4 {[%clk 0:01:21.7]} 23. Rd8 {[%clk 0:00:14.5]} 23...
Qh6 {[%clk 0:01:11.8]} 24. Qxf7+ {[%clk 0:00:14.1]} 1-0

[Event "*** Titled Tuesday Blitz"]
[Site "Chess.com"]
[Date "2021.04.27"]
[Round "2"]
[White "Kretov_Evgenij"]
[Black "SergioGarciaFuentes"]
[Result "1-0"]
[WhiteElo "2645"]
[BlackElo "2344"]
[TimeControl "180+1"]
[EndTime "10:16:43 PDT"]
[Termination "Kretov_Evgenij won on time"]

1. d4 {[%clk 0:03:00.9]} 1... d5 {[%clk 0:02:59.4]} 2. c4 {[%clk 0:03:01.1]}
2... c6 {[%clk 0:02:59.9]} 3. Nc3 {[%clk 0:03:01.4]} 3... Nf6 {[%clk 0:03:00.1]}
4. e3 {[%clk 0:03:01.6]} 4... e6 {[%clk 0:02:50.6]} 5. Nf3 {[%clk 0:03:00.9]}
5... Nbd7 {[%clk 0:02:50.5]} 6. Bd3 {[%clk 0:03:01.1]} 6... Bd6 {[%clk
0:02:49.6]} 7. e4 {[%clk 0:03:00.8]} 7... dxe4 {[%clk 0:02:46]} 8. Nxe4 {[%clk
0:03:00.7]} 8... Nxe4 {[%clk 0:02:46.6]} 9. Bxe4 {[%clk 0:03:01.1]} 9... Nf6
{[%clk 0:02:47.2]} 10. Bc2 {[%clk 0:03:01.2]} 10... c5 {[%clk 0:02:21.4]} 11.
O-O {[%clk 0:02:57.1]} 11... O-O {[%clk 0:02:08.4]} 12. Bg5 {[%clk 0:02:55.2]}
12... Be7 {[%clk 0:01:59.8]} 13. Qd3 {[%clk 0:02:52.3]} 13... g6 {[%clk
0:01:56.2]} 14. Rad1 {[%clk 0:02:48.8]} 14... cxd4 {[%clk 0:01:49.8]} 15. Nxd4
{[%clk 0:02:48.6]} 15... e5 {[%clk 0:01:40.1]} 16. Nb5 {[%clk 0:02:47.8]} 16...
Be6 {[%clk 0:01:00]} 17. Qc3 {[%clk 0:02:43.1]} 17... Qc8 {[%clk 0:00:59.3]} 18.
Nd6 {[%clk 0:02:37.8]} 18... Qc7 {[%clk 0:00:45.7]} 19. Qxe5 {[%clk 0:02:16.4]}
19... Nd7 {[%clk 0:00:42]} 20. Qg3 {[%clk 0:02:11.6]} 20... Bxg5 {[%clk
0:00:35.4]} 21. Qxg5 {[%clk 0:02:10.7]} 21... Bxc4 {[%clk 0:00:22.9]} 22. Nxc4
{[%clk 0:02:07.1]} 22... Qxc4 {[%clk 0:00:23.8]} 23. Bb3 {[%clk 0:02:01.1]}
23... Qc7 {[%clk 0:00:13.3]} 24. Qe7 {[%clk 0:02:00.1]} 24... Rad8 {[%clk
0:00:10.4]} 25. Rc1 {[%clk 0:01:54.3]} 25... Qe5 {[%clk 0:00:09.2]} 26. Bxf7+
{[%clk 0:01:46.2]} 26... Kh8 {[%clk 0:00:07.1]} 27. Qxe5+ {[%clk 0:01:41.7]}
27... Nxe5 {[%clk 0:00:08]} 28. Bb3 {[%clk 0:01:41.4]} 28... Rd2 {[%clk
0:00:03.9]} 29. Rc2 {[%clk 0:01:40.4]} 1-0

[Event "*** Titled Tuesday Blitz"]
[Site "Chess.com"]
[Date "2021.04.27"]
[Round "2"]
[White "Jenia84"]
[Black "zurzan"]
[Result "1/2-1/2"]
[WhiteElo "2350"]
[BlackElo "2014"]
[TimeControl "180+1"]
[EndTime "10:16:47 PDT"]
[Termination "Game drawn by repetition"]

1. e4 {[%clk 0:03:00.9]} 1... g6 {[%clk 0:03:00.9]} 2. d4 {[%clk 0:02:59]} 2...
c6 {[%clk 0:03:01.8]} 3. Bf4 {[%clk 0:02:58.8]} 3... d5 {[%clk 0:03:01.3]} 4.
Nd2 {[%clk 0:02:55]} 4... dxe4 {[%clk 0:03:00.7]} 5. Nxe4 {[%clk 0:02:54.3]}
5... Nf6 {[%clk 0:03:01.5]} 6. Nxf6+ {[%clk 0:02:53.3]} 6... exf6 {[%clk
0:03:01.8]} 7. Qd2 {[%clk 0:02:53.4]} 7... Be6 {[%clk 0:02:39.9]} 8. Be2 {[%clk
0:02:41.8]} 8... Qb6 {[%clk 0:02:33.2]} 9. c3 {[%clk 0:02:35.2]} 9... Bg7 {[%clk
0:02:30.8]} 10. Nf3 {[%clk 0:02:32]} 10... O-O {[%clk 0:02:29.8]} 11. O-O {[%clk
0:02:31.7]} 11... Nd7 {[%clk 0:02:26.9]} 12. b3 {[%clk 0:02:28.7]} 12... Rae8
{[%clk 0:02:23.3]} 13. Rfe1 {[%clk 0:02:25.7]} 13... Bg4 {[%clk 0:02:14.7]} 14.
Bh6 {[%clk 0:02:22.6]} 14... Bxf3 {[%clk 0:02:13.2]} 15. Bxf3 {[%clk 0:02:21.9]}
15... Bxh6 {[%clk 0:02:14.1]} 16. Qxh6 {[%clk 0:02:20.6]} 16... f5 {[%clk
0:02:07.6]} 17. h4 {[%clk 0:02:18]} 17... c5 {[%clk 0:01:22.3]} 18. dxc5 {[%clk
0:02:01.2]} 18... Nxc5 {[%clk 0:01:22.3]} 19. Bd5 {[%clk 0:01:57.6]} 19... Nd3
{[%clk 0:01:12.7]} 20. Rf1 {[%clk 0:00:56.8]} 20... Re2 {[%clk 0:00:47.9]} 21.
h5 {[%clk 0:00:53.9]} 21... Rxf2 {[%clk 0:00:43.7]} 22. Rxf2 {[%clk 0:00:51.5]}
22... Qxf2+ {[%clk 0:00:42.6]} 23. Kh1 {[%clk 0:00:51.9]} 23... Qh4+ {[%clk
0:00:41.4]} 24. Kg1 {[%clk 0:00:51.7]} 24... Qf2+ {[%clk 0:00:37.7]} 25. Kh1
{[%clk 0:00:51]} 25... Qh4+ {[%clk 0:00:37.9]} 26. Kg1 {[%clk 0:00:50.8]} 26...
Qf2+ {[%clk 0:00:38.1]} 1/2-1/2

[Event "*** Titled Tuesday Blitz"]
[Site "Chess.com"]
[Date "2021.04.27"]
[Round "2"]
[White "rasmussvane"]
[Black "Marty435"]
[Result "1-0"]
[WhiteElo "2916"]
[BlackElo "2593"]
[TimeControl "180+1"]
[EndTime "10:16:48 PDT"]
[Termination "rasmussvane won on time"]

1. Nf3 {[%clk 0:03:00.9]} 1... d5 {[%clk 0:02:14.1]} 2. g3 {[%clk 0:02:59.9]}
2... g6 {[%clk 0:02:12.6]} 3. d4 {[%clk 0:02:59.4]} 3... Bg7 {[%clk 0:02:12.6]}
4. Bg2 {[%clk 0:03:00.1]} 4... c6 {[%clk 0:02:13.2]} 5. O-O {[%clk 0:03:00.5]}
5... Nf6 {[%clk 0:02:13.3]} 6. c4 {[%clk 0:03:01]} 6... dxc4 {[%clk 0:02:13.9]}
7. a4 {[%clk 0:03:01.4]} 7... Ne4 {[%clk 0:02:06.6]} 8. Qc2 {[%clk 0:02:53.2]}
8... Nd6 {[%clk 0:02:04.6]} 9. e4 {[%clk 0:02:53.8]} 9... Na6 {[%clk 0:01:34]}
10. Na3 {[%clk 0:02:47]} 10... Nb4 {[%clk 0:01:31.4]} 11. Qc3 {[%clk 0:02:42.3]}
11... a5 {[%clk 0:01:17.6]} 12. e5 {[%clk 0:02:41.9]} 12... Nf5 {[%clk
0:01:14.9]} 13. g4 {[%clk 0:02:38.1]} 13... Nxd4 {[%clk 0:00:32.8]} 14. Nxd4
{[%clk 0:02:16.9]} 14... Bxe5 {[%clk 0:00:33.1]} 15. Nxc6 {[%clk 0:02:11.6]}
15... Bxc3 {[%clk 0:00:31.7]} 16. Nxd8 {[%clk 0:02:11.4]} 16... Bd4 {[%clk
0:00:18.6]} 17. Nxb7 {[%clk 0:02:06.8]} 17... O-O {[%clk 0:00:15.5]} 18. Nxc4
{[%clk 0:01:57.6]} 18... Bxg4 {[%clk 0:00:10.9]} 19. Nbxa5 {[%clk 0:01:57.9]}
19... Ra6 {[%clk 0:00:05.6]} 20. Be3 {[%clk 0:01:48.3]} 20... Bxe3 {[%clk
0:00:04]} 21. fxe3 {[%clk 0:01:49.2]} 21... Be2 {[%clk 0:00:02.4]} 22. Rf2
{[%clk 0:01:48.5]} 22... Bd3 {[%clk 0:00:02.1]} 23. Bf1 {[%clk 0:01:46.5]} 23...
Bxf1 {[%clk 0:00:01.5]} 24. Raxf1 {[%clk 0:01:45.8]} 24... Rfa8 {[%clk
0:00:02.4]} 25. Rxf7 {[%clk 0:01:41.8]} 25... Rxa5 {[%clk 0:00:02.8]} 26. Nxa5
{[%clk 0:01:42.7]} 26... Rxa5 {[%clk 0:00:03.5]} 27. Rxe7 {[%clk 0:01:42.9]}
27... Rxa4 {[%clk 0:00:02.4]} 28. Re4 {[%clk 0:01:38.5]} 28... Kg7 {[%clk
0:00:02.4]} 29. b3 {[%clk 0:01:38.7]} 29... Ra2 {[%clk 0:00:01.2]} 30. Rxb4
{[%clk 0:01:38.4]} 30... h5 {[%clk 0:00:01.5]} 31. Rf2 {[%clk 0:01:37.4]} 31...
Kh6 {[%clk 0:00:02]} 32. Rxa2 {[%clk 0:01:37.4]} 1-0